fUST/lending_fUST_20240628
["ID","MTS","AMOUNT","RATE_DAILY","PERIOD"]
[330496781,1719515356139,-157.0654027,0.00030913,7]
[330496782,1719515356333,6844.1,0.00029692,3]
[330496783,1719515358428,154.82195475,0.00027399,2]
[330496784,1719515359249,159.69169656,0.00022907,2]
[330496785,1719515372688,155.40565287,0.00022907,2]
[330496786,1719515394790,19351.9714729,0.00022907,2]
[330496787,1719515396178,155.11679265,0.00022907,2]
[330496788,1719515397500,2099.40710865,0.00022907,2]
[330496789,1719515401262,1487.01268285,0.00022907,2]
[330496790,1719515405875,724.05231087,0.00022907,2]
[330496791,1719515430878,19351.9714729,0.00027766,2]
[330496838,1719515433015,-150.0,0.00030181,2]
[330496840,1719515433025,-170.0,0.00030181,2]
[330496842,1719515433034,-158.86989156,0.00031142,7]
[330496844,1719515433044,-153.80876399,0.00031321,7]
[330496846,1719515433053,-13826.73999706,0.00031875,2]
[330496857,1719515433148,-11073.26000294,0.00031875,2]
[330496859,1719515433157,-472.46569195,0.00031917,2]
[330496861,1719515433170,-157.53820426,0.00032089,7]
[330496863,1719515433180,-82.96304361,0.00032407,7]
[330496865,1719515433193,-78.31204276,0.00032407,7]
[330496867,1719515433203,-158.84011687,0.00032481,7]
[330496869,1719515433212,-157.53820426,0.00032607,7]
[330496871,1719515433221,-157.06540271,0.00032706,7]
[330496873,1719515433231,-158.86989156,0.0003292,7]
[330496875,1719515433240,-159.5012381,0.0003298,7]
[330496877,1719515433249,-157.53820426,0.00032982,7]
[330496879,1719515433259,-153.80876399,0.00033373,7]
[330496881,1719515433268,-157.53820426,0.00033648,7]
[330496883,1719515433277,-161.27508637,0.00033755,7]
[330496885,1719515433286,-153.80876399,0.0003388,7]
[330496887,1719515433295,-472.46569195,0.00033972,2]
[330496889,1719515433305,-158.86989156,0.00033992,7]
[330496891,1719515433314,-157.53820433,0.000343,7]
[330496893,1719515433323,-8867.15678597,0.00034563,4]
[330496895,1719515433333,-158.8698917,0.00034572,7]
[330496897,1719515433342,-3325.29183219,0.00034574,4]
[330496899,1719515433351,-2129.54772975,0.0003458,4]
[330496901,1719515433360,-1502.3421345,0.0003458,4]
[330496903,1719515433369,-1312.82746859,0.00034588,4]
[330496905,1719515433379,-10560.92625688,0.00034592,4]
[330496907,1719515433390,-303.28784189,0.00034623,4]
[330496909,1719515433400,-154.83742071,0.00034623,4]
[330496912,1719515433410,-1132.57521393,0.0003463,4]
[330496914,1719515433419,-658.98576985,0.0003463,2]
[330496915,1719515433428,-154.83742071,0.0003463,4]
[330496918,1719515433438,-280.62772931,0.00034634,4]
[330496920,1719515433448,-154.83742071,0.00034634,4]
[330496922,1719515433458,-154.82195475,0.00034634,4]
[330496923,1719515433468,-154.82195475,0.00034634,4]
[330496925,1719515433477,-154.83742071,0.00034634,4]
[330496927,1719515433487,-211.27059875,0.00034634,4]
[330496929,1719515433496,-286.39912426,0.00034634,4]
[330496931,1719515433505,-322.01145644,0.00034634,4]
[330496933,1719515433515,-195.49846886,0.00034642,4]
[330496935,1719515433524,-154.82195475,0.00034642,4]
[330496937,1719515433534,-154.82195475,0.00034642,4]
[330496939,1719515433543,-500.0,0.00034659,7]
[330496941,1719515433552,-238.77478488,0.00034659,7]
[330496943,1719515433562,-32987.908645,0.0003466,4]
[330496945,1719515433571,-660.61081995,0.0003467,4]
[330496947,1719515433580,-2743.00372686,0.0003468,2]
[330496949,1719515433590,-2571.96088195,0.0003468,4]
[330496951,1719515433599,-155.00511317,0.00034688,4]
[330496953,1719515433609,-236.58167361,0.00034771,4]
[330496955,1719515433618,-825.82900978,0.00034899,4]
[330496957,1719515433627,-539.84411863,0.00034989,4]
[330496959,1719515433638,-415.37809916,0.00034989,4]
[330496961,1719515433647,-193.86455002,0.00034989,4]
[330496963,1719515433657,-154.82195475,0.00034999,4]
[330496965,1719515433666,-2709.72121891,0.00035,4]
[330496967,1719515433676,-1000.0,0.00035,3]
[330496969,1719515433686,-154.82195475,0.00035259,4]
[330496971,1719515433695,-154.82195475,0.00035292,4]
[330496973,1719515433704,-154.82195475,0.00035292,4]
[330496974,1719515433714,-154.82195475,0.00035581,4]
[330496976,1719515433724,-164.12059,0.00035582,2]
[330496978,1719515433734,-1273.50734285,0.00035615,4]
[330496980,1719515433743,-1559.42989782,0.00035999,4]
[330496981,1719515433753,-472.46569195,0.00036028,2]
[330496982,1719515433763,-2115.0148568,0.00036128,4]
[330496983,1719515433773,-2081.45112335,0.000363,18]
[330496984,1719515433782,-2081.45112334,0.000363,18]
[330496985,1719515433791,-2081.45112334,0.000363,18]
[330496986,1719515433801,-2081.45112334,0.000363,18]
[330496987,1719515433810,-215.224186,0.00036649,2]
[330496988,1719515433820,-713.8715386,0.00037587,4]
[330496989,1719515433829,-5703.42,0.00037755,3]
[330496990,1719515433839,-11906.5197124,0.00037765,7]
[330496991,1719515433848,-6449.33553457,0.0003799,5]
[330496992,1719515433857,-32987.908645,0.0003799,4]
[330496993,1719515433867,-499.99999901,0.00038,7]
[330496994,1719515433876,-4264.0,0.00038,7]
[330496996,1719515433886,-5282.41580836,0.00038016,2]
[330496998,1719515433895,-240.6942,0.00038164,2]
[330496999,1719515433904,-500.0,0.00038184,30]
[330497001,1719515433913,-427.50730024,0.00038264,4]
[330497003,1719515433923,-541.18915756,0.00038264,4]
[330497004,1719515433932,-1267.0,0.00038298,50]
[330497005,1719515433941,-154.82195475,0.00038499,4]
[330497006,1719515433950,-702.15777276,0.00038499,4]
[330497007,1719515433959,-730.499527,0.00038578,7]
[330497008,1719515433969,-376.796004,0.00038578,7]
[330497009,1719515433978,-730.499527,0.00038578,7]
[330497010,1719515433987,-376.796004,0.00038578,7]
[330497011,1719515433997,-65975.81729,0.00038578,4]
[330497012,1719515434006,-151.0,0.00038588,7]
[330497013,1719515434016,-151.0,0.00038588,7]
[330497014,1719515434025,-151.194655,0.00038588,7]
[330497015,1719515434035,-151.194655,0.00038588,7]
[330497016,1719515434044,-151.0,0.00038588,7]
[330497017,1719515434054,-151.0,0.00038588,7]
[330497018,1719515434064,-252.572699,0.00038588,7]
[330497019,1719515434073,-151.0,0.00038588,7]
[330497020,1719515434084,-151.0,0.00038588,7]
[330497021,1719515434094,-151.0,0.00038588,7]
[330497022,1719515434106,-151.0,0.00038588,7]
[330497023,1719515434117,-400.497909,0.00038588,7]
[330497024,1719515434127,-400.497909,0.00038588,7]
[330497025,1719515434138,-296.659091,0.00038588,7]
[330497026,1719515434148,-296.659091,0.00038588,7]
[330497027,1719515434158,-151.0,0.00038588,7]
[330497028,1719515434168,-165.976932,0.00038588,7]
[330497029,1719515434182,-155.539681,0.00038588,7]
[330497030,1719515434192,-753.474052,0.00038588,7]
[330497031,1719515434202,-753.474052,0.00038588,7]
[330497032,1719515434212,-151.0,0.00038588,7]
[330497033,1719515434309,-151.0,0.00038588,7]
[330497034,1719515434320,-239.123114,0.00038588,7]
[330497035,1719515434330,-239.123114,0.00038588,7]
[330497036,1719515434340,-730.499527,0.00038588,7]
[330497037,1719515434350,-376.796004,0.00038588,7]
[330497038,1719515434360,-730.499527,0.00038588,7]
[330497039,1719515434369,-376.796004,0.00038588,7]
[330497040,1719515434380,-153.001941,0.00038588,7]
[330497041,1719515434390,-151.0,0.00038588,7]
[330497042,1719515434400,-151.0,0.00038588,7]
[330497043,1719515434409,-114688.07975236,0.00038588,90]
[330497044,1719515434420,-189.4,0.00038775,15]
[330497045,1719515434429,-152.0,0.00038775,15]
[330497046,1719515434438,-305.9999999,0.00038959,2]
[330497047,1719515434449,-1000.0,0.00039,39]
[330497048,1719515434459,-510.65,0.00039,120]
[330497049,1719515434470,-549.0,0.00039,7]
[330497050,1719515434479,-4263.0,0.00039,7]
[330497051,1719515434488,-276.7,0.00039174,15]
[330497052,1719515434498,-152.0,0.00039174,15]
[330497053,1719515434507,-789.91104539,0.00039177,4]
[330497054,1719515434517,-359.11713676,0.00039393,4]
[330497055,1719515434528,-155.19850673,0.00039393,4]
[330497056,1719515434538,-710.4284992,0.00039393,4]
[330497057,1719515434548,-1000.0,0.000395,2]
[330497058,1719515434557,-276.7,0.00039574,15]
[330497059,1719515434567,-152.0,0.00039574,15]
[330497060,1719515434576,-151.0,0.000396,60]
[330497061,1719515434586,-8347.57320521,0.0003978,7]
[330497062,1719515434596,-32987.908645,0.0003978,4]
[330497063,1719515434605,-2000.0,0.0003979,2]
[330497064,1719515434616,-4109.57001977,0.000398,40]
[330497065,1719515434626,-154.8,0.000398,31]
[330497066,1719515434636,-154.8,0.000398,31]
[330497067,1719515434645,-151.0,0.0003989,7]
[330497068,1719515434655,-197.837927,0.0003989,7]
[330497069,1719515434665,-151.0,0.0003989,7]
[330497070,1719515434674,-151.0,0.0003989,7]
[330497071,1719515434683,-151.0,0.0003989,7]
[330497072,1719515434693,-151.0,0.0003989,7]
[330497073,1719515434702,-151.0,0.0003989,7]
[330497074,1719515434713,-400.497909,0.0003989,7]
[330497075,1719515434723,-400.497909,0.0003989,7]
[330497076,1719515434733,-296.659091,0.0003989,7]
[330497077,1719515434742,-296.659091,0.0003989,7]
[330497078,1719515434751,-753.474052,0.0003989,7]
[330497079,1719515434762,-753.474052,0.0003989,7]
[330497080,1719515434772,-151.0,0.0003989,7]
[330497081,1719515434782,-239.123114,0.0003989,7]
[330497082,1719515434792,-239.123114,0.0003989,7]
[330497083,1719515434802,-730.499527,0.0003989,7]
[330497084,1719515434812,-376.796004,0.0003989,7]
[330497085,1719515434822,-730.499527,0.0003989,7]
[330497086,1719515434832,-376.796004,0.0003989,7]
[330497087,1719515434842,-151.0,0.0003989,7]
[330497088,1719515434853,-151.0,0.0003989,7]
[330497089,1719515434862,-151.0,0.000399,7]
[330497090,1719515434872,-151.0,0.000399,7]
[330497091,1719515434882,-151.0,0.000399,7]
[330497092,1719515434893,-151.0,0.000399,7]
[330497093,1719515434902,-151.0,0.000399,7]
[330497094,1719515434913,-151.194655,0.000399,7]
[330497095,1719515434922,-151.194655,0.000399,7]
[330497096,1719515434932,-151.0,0.000399,7]
[330497097,1719515434942,-233.741167,0.000399,7]
[330497098,1719515434952,-151.0,0.000399,7]
[330497099,1719515434961,-151.0,0.000399,7]
[330497100,1719515434971,-151.0,0.000399,7]
[330497101,1719515434980,-400.497909,0.000399,7]
[330497102,1719515434990,-400.497909,0.000399,7]
[330497103,1719515435000,-500.0,0.00039972,30]
[330497104,1719515435009,-500.0,0.00039972,35]
[330497105,1719515435019,-500.0,0.00039972,40]
[330497106,1719515435029,-500.0,0.00039972,45]
[330497107,1719515435039,-500.0,0.00039972,50]
[330497108,1719515435049,-500.0,0.00039972,55]
[330497109,1719515435058,-500.0,0.00039972,60]
[330497110,1719515435068,-500.0,0.00039972,65]
[330497111,1719515435078,-500.0,0.00039972,70]
[330497112,1719515435087,-260.22714058,0.00039972,75]
[330497113,1719515435099,-276.7,0.00039973,15]
[330497114,1719515435112,-152.0,0.00039973,15]
[330497115,1719515435122,-151.0,0.0003999,7]
[330497116,1719515435131,-151.0,0.0003999,7]
[330497117,1719515435144,-151.0,0.0003999,7]
[330497118,1719515435153,-151.0,0.0003999,7]
[330497119,1719515435163,-151.194655,0.0003999,7]
[330497120,1719515435172,-151.194655,0.0003999,7]
[330497121,1719515435185,-151.0,0.0003999,7]
[330497122,1719515435195,-151.0,0.0003999,7]
[330497123,1719515435205,-272.76768,0.0003999,7]
[330497124,1719515435214,-151.0,0.0003999,7]
[330497125,1719515435223,-400.497909,0.0003999,7]
[330497126,1719515435233,-400.497909,0.0003999,7]
[330497127,1719515435243,-296.659091,0.0003999,7]
[330497128,1719515435252,-296.659091,0.0003999,7]
[330497129,1719515435262,-753.474052,0.0003999,7]
[330497130,1719515435272,-753.474052,0.0003999,7]
[330497131,1719515435282,-151.0,0.0003999,7]
[330497132,1719515435291,-65975.81729,0.0003999,4]
[330497133,1719515435301,-239.123114,0.0003999,7]
[330497134,1719515435310,-239.123114,0.0003999,7]
[330497135,1719515435320,-730.499527,0.0003999,7]
[330497136,1719515435330,-376.796004,0.0003999,7]
[330497137,1719515435339,-730.499527,0.0003999,7]
[330497138,1719515435351,-376.796004,0.0003999,7]
[330497139,1719515435361,-151.0,0.0003999,7]
[330497140,1719515435371,-151.0,0.0003999,7]
[330497141,1719515435381,-1000.0,0.0003999,3]
[330497142,1719515435394,-244.97894054,0.00039994,4]
[330497143,1719515435403,-170.60977344,0.00039999,4]
[330497144,1719515435412,-5383.29637043,0.0004,7]
[330497145,1719515435421,-257176.94446581,0.0004,15]
[330497146,1719515435431,-4827.56920915,0.0004,2]
[330497147,1719515435441,-2000.0,0.0004,30]
[330497148,1719515435451,-1711.0,0.0004,30]
[330497149,1719515435461,-1000.0,0.0004,3]
[330497150,1719515435471,-45021.93161043,0.0004,120]
[330497151,1719515435481,-647.641342,0.0004,7]
[330497152,1719515435490,-151.0,0.0004,7]
[330497153,1719515435500,-151.0,0.0004,7]
[330497154,1719515435510,-303.07079594,0.0004,120]
[330497155,1719515435520,-151.0,0.0004,7]
[330497156,1719515435530,-289.294637,0.0004,7]
[330497157,1719515435539,-151.0,0.0004,7]
[330497158,1719515435549,-151.0,0.0004,7]
[330497159,1719515435559,-151.0,0.0004,7]
[330497160,1719515435568,-151.0,0.0004,7]
[330497161,1719515435577,-151.194655,0.0004,7]
[330497162,1719515435587,-151.194655,0.0004,7]
[330497163,1719515435596,-151.194655,0.0004,7]
[330497164,1719515435605,-151.194655,0.0004,7]
[330497165,1719515435615,-151.0,0.0004,7]
[330497166,1719515435625,-151.0,0.0004,7]
[330497167,1719515435636,-151.0,0.0004,7]
[330497168,1719515435645,-151.0,0.0004,7]
[330497169,1719515435742,-500.0,0.0004,5]
[330497170,1719515435753,-151.0,0.0004,7]
[330497171,1719515435763,-254.104475,0.0004,7]
[330497172,1719515435772,-400.497909,0.0004,7]
[330497173,1719515435783,-400.497909,0.0004,7]
[330497174,1719515435793,-400.497909,0.0004,7]
[330497175,1719515435803,-400.497909,0.0004,7]
[330497176,1719515435813,-296.659091,0.0004,7]
[330497177,1719515435822,-296.659091,0.0004,7]
[330497178,1719515435832,-296.659091,0.0004,7]
[330497179,1719515435842,-296.659091,0.0004,7]
[330497180,1719515435852,-753.474052,0.0004,7]
[330497181,1719515435862,-753.474052,0.0004,7]
[330497182,1719515435871,-753.474052,0.0004,7]
[330497183,1719515435881,-753.474052,0.0004,7]
[330497184,1719515435892,-151.0,0.0004,7]
[330497185,1719515435901,-151.0,0.0004,7]
[330497186,1719515435911,-239.123114,0.0004,7]
[330497187,1719515435920,-239.123114,0.0004,7]
[330497188,1719515435930,-239.123114,0.0004,7]
[330497189,1719515435940,-239.123114,0.0004,7]
[330497190,1719515435950,-730.499527,0.0004,7]
[330497191,1719515435960,-730.499527,0.0004,7]
[330497192,1719515435969,-376.796004,0.0004,7]
[330497193,1719515435979,-376.796004,0.0004,7]
[330497194,1719515435990,-730.499527,0.0004,7]
[330497195,1719515435999,-730.499527,0.0004,7]
[330497196,1719515436009,-376.796004,0.0004,7]
[330497197,1719515436019,-376.796004,0.0004,7]
[330497198,1719515436028,-151.0,0.0004,7]
[330497199,1719515436038,-151.0,0.0004,7]
[330497200,1719515436047,-151.0,0.0004,7]
[330497201,1719515436057,-151.0,0.0004,7]
[330497202,1719515436066,-200.0,0.00040209,120]
[330497203,1719515436076,-12130.65982941,0.00040328,30]
[330497204,1719515436085,-276.7,0.00040373,15]
[330497205,1719515436094,-152.0,0.00040373,15]
[330497206,1719515436105,-276.7,0.00040772,15]
[330497207,1719515436117,-152.0,0.00040772,15]
[330497208,1719515436127,-5088.61,0.00041095,120]
[330497209,1719515436137,-1245.3854814,0.00041096,7]
[330497210,1719515436148,-178.8903543,0.00041096,2]
[330497211,1719515436157,-276.7,0.00041172,31]
[330497212,1719515436167,-152.0,0.00041172,31]
[330497213,1719515436176,-154.82195475,0.00041314,4]
[330497214,1719515436187,-151.0,0.00041315,120]
[330497215,1719515436197,-5088.61,0.00041369,120]
[330497216,1719515436207,-276.7,0.00041571,31]
[330497217,1719515436216,-152.0,0.00041571,31]
[330497218,1719515436226,-309.67484142,0.00041589,4]
[330497219,1719515436235,-486.59745493,0.0004159,30]
[330497220,1719515436244,-150.81901718,0.00041627,2]
[330497221,1719515436253,-5088.61,0.00041643,120]
[330497222,1719515436263,-153.0,0.00041644,2]
[330497223,1719515436272,-153.0,0.00041863,2]
[330497224,1719515436282,-153.0,0.00041863,2]
[330497225,1719515436291,-153.0,0.00041863,2]
[330497226,1719515436300,-153.0,0.00041863,2]
[330497227,1719515436310,-153.0,0.00041863,2]
[330497228,1719515436319,-153.0,0.00041863,2]
[330497229,1719515436328,-153.0,0.00041863,2]
[330497230,1719515436338,-153.0,0.00041863,2]
[330497231,1719515436347,-153.0,0.00041863,2]
[330497232,1719515436356,-153.0,0.00041863,2]
[330497233,1719515436366,-153.0,0.00041863,2]
[330497234,1719515436376,-153.0,0.00041863,2]
[330497235,1719515436386,-151.0,0.00041917,14]
[330497236,1719515436396,-400.497909,0.00041917,14]
[330497237,1719515436405,-400.497909,0.00041917,14]
[330497238,1719515436416,-5088.61,0.00041917,120]
[330497239,1719515436425,-296.659091,0.00041917,14]
[330497240,1719515436435,-296.659091,0.00041917,14]
[330497241,1719515436444,-753.474052,0.00041917,14]
[330497242,1719515436454,-753.474052,0.00041917,14]
[330497243,1719515436463,-151.0,0.00041917,14]
[330497244,1719515436472,-239.123114,0.00041917,14]
[330497245,1719515436482,-239.123114,0.00041917,14]
[330497246,1719515436491,-730.499527,0.00041917,14]
[330497247,1719515436501,-376.796004,0.00041917,14]
[330497248,1719515436511,-730.499527,0.00041917,14]
[330497249,1719515436520,-376.796004,0.00041917,14]
[330497250,1719515436530,-151.0,0.00041917,14]
[330497251,1719515436541,-242.46318,0.00041917,14]
[330497252,1719515436551,-276.7,0.00041971,31]
[330497253,1719515436561,-152.0,0.00041971,31]
[330497254,1719515436571,-160.263156,0.0004199,14]
[330497255,1719515436580,-7480.45339746,0.00042,7]
[330497256,1719515436590,-242.768311,0.00042,14]
[330497257,1719515436599,-505.378721,0.00042,30]
[330497258,1719515436609,-5088.61,0.00042191,120]
[330497259,1719515436618,-190.9711804,0.00042192,2]
[330497260,1719515436628,-153.0,0.00042192,2]
[330497261,1719515436640,-151.0,0.00042192,14]
[330497262,1719515436650,-151.194655,0.00042192,14]
[330497263,1719515436659,-151.194655,0.00042192,14]
[330497264,1719515436668,-151.0,0.00042192,14]
[330497265,1719515436677,-301.63803436,0.00042327,4]
[330497266,1719515436686,-276.7,0.0004237,31]
[330497267,1719515436695,-152.0,0.0004237,31]
[330497268,1719515436705,-5088.61,0.00042465,120]
[330497269,1719515436715,-10000.0,0.000425,60]
[330497270,1719515436724,-151.0,0.0004263,120]
[330497271,1719515436733,-5088.61,0.00042739,120]
[330497272,1719515436743,-411.6631455,0.0004274,2]
[330497273,1719515436752,-205.8574448,0.0004274,2]
[330497274,1719515436761,-205.4952361,0.0004274,2]
[330497275,1719515436771,-276.7,0.0004277,31]
[330497276,1719515436780,-152.0,0.0004277,31]
[330497277,1719515436790,-164.12059,0.00042825,2]
[330497278,1719515436800,-411.7148896,0.00042877,2]
[330497279,1719515436810,-205.8574448,0.00042877,2]
[330497280,1719515436820,-205.8574448,0.00042877,2]
[330497281,1719515436830,-153.0,0.00042877,2]
[330497282,1719515436840,-1967.45654607,0.00042999,30]
[330497283,1719515436850,-1000.0,0.00043,43]
[330497284,1719515436860,-555.51,0.00043,30]
[330497285,1719515436870,-1462.12404136,0.00043,30]
[330497286,1719515436887,-434.29098335,0.00043,30]
[330497287,1719515436899,-261.51758345,0.00043,30]
[330497288,1719515437562,283.95938254,0.0003,3]
[330497332,1719515439258,-155.36783824,0.00034642,4]
[330497333,1719515439269,-516.72213415,0.00034669,4]
[330497334,1719515439279,-154.82195475,0.00034989,4]
[330497335,1719515439290,-151.0,0.000399,7]
[330497336,1719515439300,-151.0,0.0003999,7]
[330497337,1719515439310,-486.16093857,0.00043,30]
[330497338,1719515439323,-3027.11726553,0.00043,30]
[330497339,1719515439333,-400.497909,0.00043,14]
[330497340,1719515439343,-400.497909,0.00043,14]
[330497341,1719515439353,-296.659091,0.00043,14]
[330497342,1719515439363,-296.659091,0.00043,14]
[330497343,1719515439373,-753.474052,0.00043,14]
[330497344,1719515439383,-753.474052,0.00043,14]
[330497345,1719515439394,-151.0,0.00043,14]
[330497346,1719515439403,-239.123114,0.00043,14]
[330497347,1719515439413,-239.123114,0.00043,14]
[330497348,1719515439423,-730.499527,0.00043,14]
[330497349,1719515439432,-376.796004,0.00043,14]
[330497350,1719515439442,-730.499527,0.00043,14]
[330497351,1719515439452,-376.796004,0.00043,14]
[330497352,1719515439463,-151.0,0.00043,14]
[330497353,1719515439473,-5088.61,0.00043013,120]
[330497354,1719515439482,-153.0,0.00043014,2]
[330497355,1719515439492,-153.0,0.00043014,2]
[330497356,1719515439502,-153.0,0.00043014,2]
[330497357,1719515439512,-153.0,0.00043014,2]
[330497358,1719515439521,-153.0,0.00043014,2]
[330497359,1719515439531,-153.0,0.00043014,2]
[330497360,1719515439541,-153.0,0.00043014,2]
[330497361,1719515439551,-153.0,0.00043014,2]
[330497362,1719515439560,-153.0,0.00043014,2]
[330497363,1719515439570,-153.0,0.00043014,2]
[330497364,1719515439579,-153.0,0.00043014,2]
[330497365,1719515439589,-153.0,0.00043014,2]
[330497366,1719515439599,-153.0,0.00043014,2]
[330497367,1719515439609,-153.0,0.00043014,2]
[330497368,1719515439619,-153.0,0.00043014,2]
[330497369,1719515439629,-153.0,0.00043014,2]
[330497370,1719515439640,-153.0,0.00043014,2]
[330497371,1719515439650,-153.0,0.00043014,2]
[330497372,1719515439659,-153.0,0.00043014,2]
[330497373,1719515439669,-153.0,0.00043014,2]
[330497374,1719515439679,-153.0,0.00043014,2]
[330497375,1719515439689,-153.0,0.00043014,2]
[330497376,1719515439699,-153.0,0.00043014,2]
[330497377,1719515439708,-153.0,0.00043014,2]
[330497378,1719515439718,-153.0,0.00043014,2]
[330497379,1719515439728,-153.0,0.00043014,2]
[330497380,1719515439737,-153.0,0.00043014,2]
[330497381,1719515439747,-153.0,0.00043014,2]
[330497382,1719515439756,-153.0,0.00043014,2]
[330497383,1719515439767,-153.0,0.00043014,2]
[330497384,1719515439777,-153.0,0.00043014,2]
[330497385,1719515439787,-153.0,0.00043014,2]
[330497386,1719515439797,-153.0,0.00043014,2]
[330497387,1719515439807,-153.0,0.00043014,2]
[330497388,1719515439816,-153.0,0.00043014,2]
[330497389,1719515439826,-153.0,0.00043014,2]
[330497390,1719515439837,-153.0,0.00043014,2]
[330497391,1719515439847,-153.0,0.00043014,2]
[330497392,1719515439857,-153.0,0.00043014,2]
[330497393,1719515439867,-153.0,0.00043014,2]
[330497394,1719515439878,-276.7,0.00043169,31]
[330497395,1719515439889,-152.0,0.00043169,31]
[330497396,1719515439898,-5088.61,0.00043287,120]
[330497397,1719515439908,-350.0,0.000435,120]
[330497398,1719515439921,-1000.1425084,0.000435,2]
[330497399,1719515439932,-5088.61,0.00043561,120]
[330497400,1719515439941,-153.0,0.00043562,2]
[330497401,1719515439951,-182.0321707,0.00043615,4]
[330497402,1719515439960,-160.94060234,0.00043675,5]
[330497403,1719515439972,-1265.0,0.00043678,56]
[330497404,1719515439982,-166.79376748,0.00043761,4]
[330497405,1719515439993,-1213.99836181,0.000438,90]
[330497406,1719515440004,-681.88482249,0.000438,120]
[330497407,1719515440014,-404.0,0.000438,19]
[330497408,1719515440024,-404.0,0.000438,19]
[330497409,1719515440034,-160.31744866,0.00043834,120]
[330497410,1719515440044,-342.46783519,0.00043835,120]
[330497411,1719515440055,-500.0,0.00043835,120]
[330497412,1719515440066,-500.0,0.00043835,120]
[330497413,1719515440076,-504.9311488,0.00043835,120]
[330497414,1719515440086,-500.0,0.00043835,120]
[330497415,1719515440097,-500.0,0.00043835,120]
[330497416,1719515440110,-500.0,0.00043835,120]
[330497417,1719515440121,-504.9656317,0.00043835,120]
[330497418,1719515440131,-500.0,0.00043835,120]
[330497419,1719515440144,-500.0,0.00043835,120]
[330497420,1719515440153,-500.0,0.00043835,120]
[330497421,1719515440163,-500.0,0.00043835,120]
[330497422,1719515440173,-500.0,0.00043835,60]
[330497423,1719515440186,-500.0,0.00043835,120]
[330497424,1719515440198,-505.1637739,0.00043835,120]
[330497425,1719515440208,-500.0,0.00043835,120]
[330497427,1719515440219,-500.0,0.00043835,120]
[330497428,1719515440229,-560.41018584,0.00043835,120]
[330497429,1719515440239,-544.93999473,0.00043835,120]
[330497430,1719515440248,-203.48622778,0.00043835,30]
[330497431,1719515440258,-500.0,0.00043835,120]
[330497432,1719515440268,-500.0,0.00043835,120]
[330497433,1719515440277,-541.68,0.00043835,120]
[330497434,1719515440287,-353.21352687,0.00043835,120]
[330497435,1719515440297,-524.16505322,0.00043835,120]
[330497436,1719515440306,-500.0,0.00043835,120]
[330497437,1719515440315,-500.0,0.00043835,120]
[330497438,1719515440325,-500.0,0.00043835,120]
[330497439,1719515440334,-500.0,0.00043835,120]
[330497440,1719515440344,-527.62980174,0.00043835,120]
[330497441,1719515440353,-500.0,0.00043835,120]
[330497442,1719515440362,-501.99168537,0.00043835,120]
[330497443,1719515440372,-500.0,0.00043835,120]
[330497444,1719515440382,-500.0,0.00043835,120]
[330497445,1719515440393,-500.0,0.00043835,120]
[330497446,1719515440402,-500.0,0.00043835,120]
[330497447,1719515440412,-500.0,0.00043835,120]
[330497448,1719515440421,-165.64279746,0.00043835,120]
[330497449,1719515440431,-500.0,0.00043835,120]